bitfinex/quotes_ETHUSD_20241120
["timestamp","ask_amount","ask_price","bid_price","bid_amount"]
[1732105193159,9.82898758,3090.4,3089.8,0.64727]
[1732105193392,3.23596,3090.3,3089.8,0.64727]
[1732105193896,3.23603,3090.2,3089.6,1.40931]
[1732105194054,3.23603,3090.2,3089.7,0.6473]
[1732105194259,0.55,3090.1,3089.7,0.6473]
[1732105194588,0.55,3090.1,3089.6,0.762]
[1732105194767,0.55,3090.1,3089.7,0.6473]
[1732105195291,0.55,3090.2,3089.8,0.64727]
[1732105195499,0.55,3090.2,3089.6,1.40931]
[1732105195500,3.78605,3090.2,3089.6,1.40931]
[1732105195791,0.55,3090.2,3089.7,0.64729]
[1732105196103,0.55,3090.2,3089.6,0.762]
[1732105196104,0.55,3090.0,3089.6,0.762]
[1732105196253,0.55,3090.0,3089.6,1.40932]
[1732105196455,3.78626,3090.0,3089.6,0.762]
[1732105196819,0.55,3089.6,3089.2,1.45799]
[1732105196955,0.55,3089.6,3089.3,0.64738]
[1732105197298,0.55,3089.7,3089.3,2.26587]
[1732105197464,0.55,3090.2,3089.7,0.8106]
[1732105197667,3.78609,3090.2,3089.7,0.8106]
[1732105198116,12.21543247,3090.5,3089.7,0.8106]
[1732105198117,0.55,3089.9,3089.7,0.8106]
[1732105198258,0.55,3089.9,3089.4,0.7558]
[1732105198596,0.55,3089.9,3089.5,1.6184]
[1732105198597,0.55,3089.6,3089.5,1.6184]
[1732105198961,0.55,3089.8,3089.5,1.6184]
[1732105199359,0.55,3089.6,3089.5,1.6184]
[1732105200206,3.35543247,3090.3,3089.6,0.7729]
[1732105200375,3.23567,3090.6,3090.1,0.7729]
[1732105200696,3.23563,3090.6,3090.1,1.42011]
[1732105200901,3.23563,3090.6,3090.1,0.7729]
[1732105201458,3.78587,3090.4,3090.1,0.7729]
[1732105201702,3.78567,3090.6,3090.1,0.7729]
[1732105202509,3.78567,3090.6,3089.5,1.6184]
[1732105202510,3.23609,3090.2,3089.8,0.8209]
[1732105202656,0.55,3090.1,3089.8,0.8209]
[1732105202863,0.55,3090.1,3090.0,0.64724]
[1732105203067,0.55,3090.1,3090.0,2.26534]
[1732105203562,4.82933287,3090.9,3090.0,2.26534]
[1732105203563,3.35543247,3090.9,3090.4,0.64715]
[1732105203782,3.35543247,3091.1,3090.7,0.6471]
[1732105204110,3.23494,3091.3,3090.7,0.6471]
[1732105204111,6.59043247,3091.2,3090.7,1.46909]
[1732105204258,7.39325837,3091.2,3090.7,1.46909]
[1732105204489,7.39325837,3091.2,3090.7,0.822]
[1732105204490,3.23511,3091.1,3090.7,0.822]
[1732105205243,3.8028259,3091.2,3090.7,1.46909]
[1732105205536,0.55,3091.1,3090.7,1.46909]
[1732105205902,0.55,3090.6,3090.2,0.7723]
[1732105206104,0.55,3090.6,3090.2,1.41949]
[1732105206417,3.7857,3090.6,3090.2,0.7723]
[1732105206629,0.55,3090.4,3090.2,0.7723]
[1732105207500,3.23593,3090.3,3090.0,1.6181]
[1732105207688,0.55,3090.2,3090.0,2.26533]
[1732105207891,0.55,3090.4,3090.0,2.26533]
[1732105208141,3.78583,3090.4,3090.0,1.6181]
[1732105208334,0.55,3090.4,3090.0,2.26534]
[1732105208495,3.78577,3090.5,3090.0,2.26534]
[1732105208694,0.55,3090.5,3090.0,2.26534]
[1732105209028,0.55,3090.5,3090.0,1.6181]
[1732105209029,0.55,3090.4,3090.0,1.6181]
[1732105209232,0.55,3090.7,3090.0,1.6181]
[1732105209436,3.0,3090.8,3090.0,1.6181]
[1732105209437,3.78614,3090.1,3090.0,1.6181]
[1732105209588,0.55,3090.1,3090.0,1.6181]
[1732105210442,3.55,3090.5,3090.0,2.26533]
[1732105210587,3.55,3090.5,3090.0,1.6181]
[1732105210939,7.499848,3090.5,3090.0,2.26534]
[1732105211086,0.55,3090.5,3090.0,2.26534]
[1732105211290,0.55,3090.5,3090.1,0.64721]
[1732105211916,3.78573,3090.5,3090.0,1.6181]
[1732105212144,3.78609,3090.2,3090.0,1.6181]
[1732105212440,0.55,3090.2,3090.0,1.6181]
[1732105212734,3.78614,3090.1,3090.0,1.6181]
[1732105213236,0.55,3090.3,3090.0,1.6181]
[1732105213390,0.55,3090.1,3090.0,1.6181]
[1732105213849,3.78614,3090.1,3090.0,1.6181]
[1732105215192,16.44574,3090.1,3090.0,1.6181]
[1732105215666,12.64614,3090.1,3090.0,1.6181]
[1732105216355,9.41,3090.1,3090.0,1.6181]
[1732105216653,6.59383399,3090.5,3090.0,1.6181]
[1732105216968,3.23574,3090.5,3090.0,1.6181]
[1732105217455,3.35809399,3090.8,3090.3,0.78]
[1732105217623,3.23536,3090.9,3090.3,1.42718]
[1732105217824,3.23536,3090.9,3090.4,0.64716]
[1732105218024,3.23574,3090.5,3090.3,0.78]
[1732105218224,3.23582,3090.4,3090.0,2.4311]
[1732105218753,0.55,3090.3,3090.0,2.4311]
[1732105219171,3.23609,3090.2,3090.0,2.4311]
[1732105219316,0.55,3090.1,3090.0,2.4311]
[1732105220256,3.78614,3090.1,3090.0,1.6181]
[1732105221124,0.55,3090.1,3090.0,1.6181]
[1732105221459,0.55,3090.2,3090.0,1.6181]
[1732105221956,3.78614,3090.1,3090.0,1.6181]
[1732105222264,3.78603,3090.2,3090.0,1.6181]
[1732105222551,0.55,3090.2,3090.0,1.6181]
[1732105222710,12.21759807,3090.6,3090.1,0.64721]
[1732105222913,3.35759807,3090.8,3090.3,0.8066]
[1732105223218,3.35759807,3091.1,3090.4,0.0323451]
[1732105223367,6.59256807,3091.3,3090.7,0.64709]
[1732105223537,7.35651807,3091.5,3090.9,1.41175]
[1732105223925,3.23478,3091.4,3090.9,1.41175]
[1732105224272,6.59558796,3091.5,3090.9,1.41175]
[1732105224273,6.59558796,3091.5,3090.9,0.7647]
[1732105224655,0.55,3091.1,3090.9,0.7647]
[1732105224874,3.23472,3091.5,3090.9,0.7647]
[1732105225373,3.23489,3091.3,3090.9,0.7647]
[1732105225672,0.55,3091.6,3090.9,1.41174]
[1732105225827,7.51234552,3091.6,3090.9,1.41174]
[1732105226032,3.23481,3091.4,3090.9,0.7647]
[1732105226264,4.27770552,3091.6,3090.9,1.41176]
[1732105226450,4.27770552,3091.6,3091.0,0.64703]
[1732105226655,3.23474,3091.5,3091.0,0.64703]
[1732105228243,0.55,3091.6,3091.0,0.64703]
[1732105228443,0.55,3091.6,3091.1,0.64701]
[1732105228648,3.0,3091.9,3091.4,0.64694]
[1732105228972,0.55,3091.9,3091.4,0.64694]
[1732105229275,3.0,3091.8,3091.3,0.64696]
[1732105229698,3.2345,3091.7,3091.1,0.64701]
[1732105229860,3.23464,3091.6,3090.9,1.41174]
[1732105230044,3.23488,3091.4,3090.6,0.8077]
[1732105230241,3.23518,3091.1,3091.0,1.6176]
[1732105230549,0.55,3091.2,3091.0,1.6176]
[1732105231192,3.76168976,3091.4,3091.0,1.6176]
[1732105231349,3.23488,3091.3,3091.0,1.6176]
[1732105231549,0.55,3091.4,3091.0,1.6176]
[1732105231749,0.55,3091.4,3091.0,2.91164]
[1732105232185,0.55,3091.4,3091.0,2.26462]
[1732105232388,0.55,3091.4,3091.3,0.64697]
[1732105232687,0.55,3091.4,3091.3,1.45067]
[1732105232857,0.8055,3091.9,3091.5,0.64691]
[1732105233059,2.39546,3091.9,3091.5,0.64691]
[1732105234295,2.39546,3091.9,3091.3,0.8037]
[1732105234296,3.55,3091.8,3091.3,0.8037]
[1732105234526,3.55,3091.8,3091.5,1.29384]
[1732105235013,0.55,3091.8,3091.3,2.09761]
[1732105235298,0.55,3091.8,3091.0,1.6176]
[1732105235299,0.55,3091.4,3091.0,2.91165]
[1732105235522,0.55,3091.2,3091.0,1.6176]
[1732105235667,3.78509,3091.1,3091.0,1.6176]
[1732105237306,3.23501,3091.2,3091.0,1.6176]
[1732105237469,6.47008,3091.2,3091.0,1.6176]
[1732105237863,3.23501,3091.2,3091.0,1.6176]
[1732105238161,0.55,3091.3,3091.0,1.6176]
[1732105238509,3.235,3091.2,3091.0,1.6176]
[1732105238812,6.47007,3091.2,3091.0,1.6176]
[1732105238963,3.235,3091.2,3091.0,1.6176]
[1732105239309,3.78489,3091.3,3091.0,1.6176]
[1732105239520,7.01985,3091.3,3091.0,1.6176]
[1732105239658,3.23509,3091.1,3091.0,1.6176]
[1732105241262,3.78509,3091.1,3091.0,1.6176]
[1732105241672,4.54029,3091.1,3091.0,1.6176]
[1732105243208,7.54029,3091.1,3091.0,1.6176]
[1732105244563,7.55029,3091.1,3091.0,1.6176]
[1732105244764,7.55029,3091.1,3089.4,1.29473]
[1732105244765,3.23647,3089.8,3089.5,0.8208]
[1732105244966,3.23664,3089.7,3089.5,0.8208]
[1732105245274,0.79,3090.2,3089.1,0.7975]
[1732105245474,0.55,3089.7,3089.2,1.29483]
[1732105245685,0.55,3089.7,3089.1,0.7975]
[1732105245881,3.78661,3089.7,3089.1,2.09235]
[1732105246111,3.23667,3089.6,3089.1,0.7975]
[1732105246269,0.55,3089.7,3089.1,3.38721]
[1732105246473,3.78658,3089.7,3089.1,2.09234]
[1732105246712,3.78658,3089.7,3089.1,3.38718]
[1732105246876,3.23627,3090.0,3089.4,1.29473]
[1732105247390,3.23635,3089.9,3089.4,1.29473]
[1732105247914,3.23635,3089.9,3089.1,2.431068]
[1732105247915,3.23655,3089.8,3089.2,1.2948]
[1732105248114,3.23657,3089.7,3089.1,2.431068]
[1732105248791,3.23684,3089.5,3089.1,0.7975]
[1732105249427,3.23704,3089.3,3089.1,0.7975]
[1732105249607,0.01,3090.0,3088.5,0.8057]
[1732105249608,3.23736,3089.0,3088.5,0.8057]
[1732105249909,3.2374,3088.9,3088.5,0.8057]
[1732105250310,3.23761,3088.7,3088.5,0.8057]
[1732105250513,3.23761,3088.7,3088.2,2.09114]
[1732105250713,3.23761,3088.7,3088.2,2.429787]
[1732105251199,0.8322,3089.0,3088.2,2.429787]
[1732105251200,0.8322,3089.0,3088.2,0.7959]
[1732105251397,3.238,3088.4,3087.9,0.8085]
[1732105251948,3.2381,3088.3,3087.9,0.8085]
[1732105252298,3.2381,3088.3,3087.6,2.07487]
[1732105252511,3.23834,3088.0,3087.6,0.7794]
[1732105252696,3.23813,3088.2,3087.6,0.7794]
[1732105252908,4.05646,3088.4,3087.6,2.07487]
[1732105253136,3.23796,3088.4,3087.8,1.29539]
[1732105253363,3.23805,3088.3,3087.6,2.282387]
[1732105253675,1.28395164,3088.8,3087.6,2.0749]
[1732105253827,6.47599,3088.4,3087.7,1.29543]
[1732105254027,3.2381,3088.3,3087.7,1.29543]
[1732105254663,3.23797,3088.4,3087.7,1.29543]
[1732105254977,3.23816,3088.2,3087.7,1.29543]
[1732105255133,3.23816,3088.2,3087.6,0.7794]
[1732105255339,3.23816,3088.2,3087.6,2.07489]
[1732105255540,3.23797,3088.4,3087.7,1.29542]
[1732105256078,3.23819,3088.2,3087.6,2.07489]
[1732105256236,3.23797,3088.4,3087.8,1.29539]
[1732105256438,3.23811,3088.3,3087.6,3.5810945]
[1732105256661,3.23813,3088.2,3087.6,2.07487]
[1732105256867,3.2383,3088.1,3087.7,1.6192]
[1732105257099,3.23835,3088.0,3087.7,1.6192]
[1732105257456,0.55,3088.3,3087.7,2.91462]
[1732105257801,3.2382,3088.2,3087.7,1.6192]
[1732105258153,3.78808,3088.3,3087.7,2.91464]
[1732105258359,0.55,3088.5,3087.7,1.6192]
[1732105258589,3.23798,3088.4,3087.7,1.6192]
[1732105258757,3.23813,3088.2,3087.7,2.91465]
[1732105259296,1.57142771,3088.5,3088.0,1.29531]
[1732105259481,8.86,3088.6,3088.1,2.12419]
[1732105259979,8.86,3088.6,3088.1,2.12416]
[1732105260185,8.86,3088.6,3088.2,1.29522]
[1732105260402,8.86,3088.6,3088.1,2.12416]
[1732105260703,8.86,3088.6,3087.7,1.6192]
[1732105260704,3.23802,3088.3,3087.7,2.4481]
[1732105260908,3.23824,3088.1,3087.7,2.4481]
[1732105261060,3.23802,3088.3,3087.7,2.4481]
[1732105261687,3.23818,3088.2,3087.7,2.4481]
[1732105262002,3.23825,3088.1,3087.7,2.4481]
[1732105262188,3.23802,3088.3,3087.7,2.4481]
[1732105262705,3.23822,3088.2,3087.7,2.4481]
[1732105262886,3.23855,3087.8,3087.7,2.4481]
[1732105263090,3.23855,3087.8,3087.7,1.6192]
[1732105263813,16.40755,3087.8,3087.7,1.6192]
[1732105267303,3.23939,3087.0,3086.7,0.7846]
[1732105267686,3.23939,3087.0,3086.4,0.8179]
[1732105267875,3.23971,3086.7,3086.4,0.8179]
[1732105268096,3.23966,3086.8,3086.4,0.8179]
[1732105268584,3.23972,3086.7,3086.4,0.8179]
[1732105268788,0.400809,3087.0,3086.0,0.766]
[1732105269097,11.86,3087.1,3086.1,1.29613]
[1732105269299,12.09929,3087.1,3086.3,0.766]
[1732105269522,6.23871,3087.7,3087.1,1.29567]
[1732105269720,3.23872,3087.7,3087.1,2.797517]
[1732105269872,3.23872,3087.7,3087.1,1.29567]
[1732105270216,6.23873,3087.7,3087.1,1.29567]
[1732105270417,3.23848,3087.9,3087.1,1.29567]
[1732105270569,8.86,3088.0,3087.1,1.29567]
[1732105270570,3.23867,3087.7,3087.1,1.29567]
[1732105270775,3.23881,3087.6,3087.0,1.29575]
[1732105270991,3.23867,3087.7,3087.1,1.2957]
[1732105271175,4.12447,3087.9,3087.1,1.2957]
[1732105271402,5.94182422,3088.1,3086.9,0.972178]
[1732105271403,0.7946,3088.2,3087.4,0.7629]
[1732105271610,0.01,3088.9,3087.5,1.32792669]
[1732105271611,0.7946,3088.6,3087.5,1.32792669]
[1732105271778,3.23746,3088.9,3088.3,0.795]
[1732105272088,3.23756,3088.8,3088.3,0.795]
[1732105272426,3.23763,3088.7,3088.3,0.795]
[1732105272712,3.23772,3088.6,3088.3,0.795]
[1732105272916,3.23763,3088.7,3088.3,0.795]
[1732105273627,3.23773,3088.6,3088.3,0.795]
[1732105274192,3.23766,3088.7,3088.3,0.795]
[1732105274378,3.23752,3088.8,3088.3,0.795]
[1732105274577,0.55,3089.0,3088.3,0.795]
[1732105274779,0.55,3089.1,3088.4,1.29514]
[1732105275019,8.86,3089.3,3088.3,2.0902]
[1732105275219,3.23734,3089.0,3088.3,0.795]
[1732105275428,13.06405,3089.3,3088.7,1.29502]
[1732105275716,13.06405,3089.3,3088.3,0.795]
[1732105275717,3.23727,3089.1,3088.5,1.29509]
[1732105275940,3.23747,3088.9,3088.3,2.09021]
[1732105276078,3.23733,3089.0,3088.4,1.29514]
[1732105276280,1.711178,3089.2,3088.3,0.795]
[1732105276574,3.23682,3089.5,3088.9,2.58987]
[1732105276775,3.23698,3089.3,3088.8,0.7937]
[1732105277029,0.323698,3089.2,3088.8,0.7937]
[1732105277326,0.323698,3089.2,3088.8,2.08867]
[1732105277489,3.2368,3089.5,3088.8,2.08867]
[1732105277695,3.23666,3089.6,3088.8,0.7937]
[1732105277885,3.23717,3089.2,3088.8,0.7937]
[1732105278614,0.886,3089.6,3088.8,0.7937]
[1732105278808,8.86,3089.8,3089.0,2.58978]
[1732105278809,3.23664,3089.7,3089.0,2.58978]
[1732105279115,12.09646,3089.8,3088.8,0.7937]
[1732105279116,3.23694,3089.4,3088.8,0.7937]
[1732105279283,9.82612,3089.8,3088.5,1.29511]
[1732105279284,3.23736,3089.0,3088.5,1.29511]
[1732105279662,3.2371,3089.2,3088.3,2.59035]
[1732105279663,3.23749,3088.9,3088.3,2.59035]
[1732105279940,3.23778,3088.6,3088.1,0.7838]
[1732105280076,0.323778,3088.5,3087.7,1.29546]
[1732105280282,3.2378,3088.6,3087.9,1.29535]
[1732105280483,0.55,3088.5,3088.0,1.29532]
[1732105280715,0.55,3088.5,3088.1,1.29526]
[1732105280919,3.23763,3088.7,3088.1,2.59052]
[1732105281231,1.1516345,3088.7,3088.2,1.29522]
[1732105281388,7.522905,3088.8,3088.2,1.29522]
[1732105281891,3.23771,3088.6,3088.1,1.29529]
[1732105282082,3.23771,3088.6,3087.9,1.29536]
[1732105282083,4.285335,3088.8,3087.9,1.29535]
[1732105282277,4.522905,3088.8,3088.1,1.29526]
[1732105282504,7.760485,3088.8,3088.2,1.29524]
[1732105282710,4.522905,3088.8,3087.8,2.04608]
[1732105282925,4.522905,3088.8,3087.8,0.7507]
[1732105282926,3.23798,3088.4,3087.8,0.7507]
[1732105283134,3.23831,3088.1,3087.5,0.8116]
[1732105283478,3.23846,3087.9,3087.1,0.8059]
[1732105283642,3.23886,3087.5,3087.1,0.8059]
[1732105283787,4.3123,3088.3,3087.2,1.29564]
[1732105284128,0.55,3088.1,3087.1,0.8059]
[1732105284339,0.55,3088.1,3087.7,2.10135]
[1732105284486,3.23797,3088.4,3087.7,2.10133]
[1732105284690,3.23803,3088.3,3087.7,2.10132]
[1732105284882,3.23803,3088.3,3087.7,3.39675]
[1732105285107,3.98614374,3088.4,3087.8,2.91461]
[1732105285383,3.98614374,3088.4,3087.9,1.29537]
[1732105285924,3.98614374,3088.4,3087.8,1.6192]
[1732105286228,3.23844,3087.9,3087.8,1.6192]
[1732105286386,3.78844,3087.9,3087.8,1.6192]
[1732105286592,3.23813,3088.2,3087.8,1.6192]
[1732105286814,3.78829,3088.1,3087.8,1.6192]
[1732105287131,3.23844,3087.9,3087.8,1.6192]
[1732105287896,3.0,3088.0,3087.8,1.6192]
[1732105288392,6.23841,3088.0,3087.8,1.6192]
[1732105288822,3.0,3088.0,3087.8,1.6192]
[1732105289023,3.23787,3088.5,3087.8,1.6192]
[1732105289221,6.23792,3088.4,3087.8,1.6192]
[1732105289536,4.185619,3088.3,3087.8,1.6192]
[1732105289824,0.947579,3088.3,3088.0,1.29532]
[1732105290035,3.0,3088.4,3088.0,1.29532]
[1732105290204,3.0,3088.4,3087.8,2.91459]
[1732105290407,3.0,3088.4,3087.9,1.29537]
[1732105290615,7.84833674,3088.4,3087.8,2.91459]
[1732105290805,3.23815,3088.2,3087.8,1.6192]
[1732105292441,0.55,3088.1,3087.8,1.6192]
[1732105292610,0.378815,3088.0,3087.8,1.6192]
[1732105293321,0.55,3088.1,3087.8,1.6192]
[1732105294756,8.86,3088.6,3088.2,1.29525]
[1732105294903,3.23735,3089.0,3088.2,1.29525]
[1732105295233,3.23771,3088.6,3088.1,0.8075]
[1732105295538,3.23758,3088.8,3088.3,1.29518]
[1732105295887,3.23758,3088.8,3088.1,2.10277]
[1732105295888,3.2376,3088.7,3088.1,2.10277]
[1732105296138,3.2376,3088.7,3087.8,1.6192]
[1732105296139,3.23798,3088.4,3087.8,2.3799]
[1732105296438,0.55,3088.1,3087.8,2.3799]
[1732105296592,0.55,3088.2,3087.8,3.67532]
[1732105296789,3.7882,3088.2,3087.8,1.6192]
[1732105296993,7.4376048,3088.2,3087.8,1.6192]
[1732105297189,3.23839,3088.0,3087.8,1.6192]
[1732105297415,0.55,3087.9,3087.8,1.6192]
[1732105297633,3.78844,3087.9,3087.8,1.6192]
[1732105297933,0.55,3087.9,3087.8,1.6192]
[1732105298234,0.55,3088.1,3087.8,1.6192]
[1732105298846,3.78824,3088.1,3087.8,1.6192]
[1732105298995,1.59376148,3088.1,3087.8,1.6192]
[1732105299199,0.55,3087.9,3087.8,1.6192]
[1732105299597,3.78844,3087.9,3087.8,1.6192]
[1732105299913,0.55,3087.9,3087.8,1.6192]
[1732105300224,0.55,3088.1,3087.8,1.6192]
[1732105300921,3.0,3088.3,3087.9,1.29537]
[1732105301537,3.0,3088.3,3087.9,2.59071]
[1732105301847,3.0,3088.3,3087.8,1.6192]
[1732105302012,3.23818,3088.2,3087.8,1.6192]
[1732105302343,3.23813,3088.2,3087.8,1.6192]
[1732105302655,3.23855,3087.8,3086.4,0.09605347]
[1732105302797,0.55,3087.4,3086.5,0.7972]
[1732105303004,3.23908,3087.3,3086.8,1.29581]
[1732105303205,3.23908,3087.3,3086.6,1.29588]
[1732105303432,0.55,3087.4,3086.7,1.29585]
[1732105303642,0.55,3087.2,3086.7,1.29585]
[1732105303958,0.55,3087.2,3086.8,1.29583]
[1732105304251,0.55,3087.2,3086.7,1.29585]
[1732105304252,0.55,3087.0,3086.5,1.29592]
[1732105304549,0.55,3086.9,3086.4,1.29598]
[1732105304710,3.7895,3086.9,3086.4,1.29598]
[1732105305222,3.7895,3086.9,3086.4,1.29597]
[1732105305421,0.55,3086.9,3086.3,1.29604]
[1732105305642,3.23961,3086.8,3086.3,1.29604]
[1732105305849,3.23961,3086.8,3086.2,2.12777]
[1732105305850,3.78973,3086.7,3086.2,2.12777]
[1732105306055,0.55,3086.7,3086.2,2.12777]
[1732105306263,0.55,3086.9,3086.4,1.296]
[1732105306472,0.55,3086.9,3086.2,2.12776]
[1732105306473,0.55,3086.7,3086.2,2.12776]
[1732105306674,0.55,3086.7,3086.3,1.29603]
[1732105306973,0.3946,3086.9,3086.4,1.29598]
[1732105307127,3.23928,3087.1,3086.6,1.29589]
[1732105307474,9.6457,3087.4,3086.8,2.11431]
[1732105307629,8.86,3087.4,3086.9,0.211431]
[1732105307836,8.86,3087.4,3086.9,1.29576]
[1732105308360,12.09897,3087.4,3086.9,1.29576]
[1732105309270,0.55,3087.3,3086.9,1.29576]
[1732105310171,0.55,3087.3,3086.8,0.8185]
[1732105310354,1.228897,3087.3,3086.4,0.7998]
[1732105310545,0.55,3087.1,3086.6,1.29589]
[1732105310741,0.55,3087.1,3086.7,1.29584]
[1732105310972,0.55,3087.4,3086.9,1.29578]
[1732105311275,0.55,3087.3,3086.7,2.5917]
[1732105311460,3.78908,3087.3,3086.5,2.59187]
[1732105311768,3.78908,3087.3,3086.5,1.29592]
[1732105311769,3.23928,3087.1,3086.5,1.29592]
[1732105311929,3.23928,3087.1,3086.4,0.7998]
[1732105311930,0.55,3087.0,3086.4,2.09579]
[1732105312140,0.55,3087.0,3086.5,1.29593]
[1732105312635,0.55,3087.0,3086.6,1.2959]
[1732105312869,3.78941,3087.0,3086.5,1.29593]
[1732105313047,0.55,3087.0,3086.5,1.29593]
[1732105313446,0.55,3087.0,3086.6,1.29589]
[1732105313871,0.55,3087.0,3086.5,1.29593]
[1732105313872,7.008,3087.4,3086.7,1.29587]
[1732105314098,3.78915,3087.3,3086.7,2.59172]
[1732105314422,0.55,3087.3,3086.9,1.29578]
[1732105314586,3.0,3087.5,3086.9,1.29578]
[1732105314774,3.0,3087.4,3086.9,1.29578]
[1732105314973,3.0,3087.4,3086.7,1.29585]
[1732105315195,3.0,3087.4,3086.9,1.29578]
[1732105315372,3.0,3087.4,3087.0,0.7571]
[1732105316124,3.78908,3087.3,3086.8,1.29583]
[1732105316969,0.55,3087.3,3086.9,1.29579]
[1732105318880,0.55,3087.3,3086.8,1.29583]
[1732105319378,0.55,3087.3,3086.8,1.29581]
[1732105319587,0.55,3087.3,3086.9,1.29577]
[1732105319789,0.55,3087.3,3086.8,1.501041]
[1732105319987,0.55,3087.3,3087.0,1.29575]
[1732105320274,4.03508,3087.7,3087.0,1.29575]
[1732105320275,3.55,3087.6,3087.0,1.29575]
[1732105320521,3.23957,3086.9,3086.7,0.7565]
[1732105320685,3.23944,3087.0,3086.4,2.05216]
[1732105321120,3.23944,3087.0,3086.4,3.34814]
[1732105321332,3.23961,3086.8,3086.4,0.7562]
[1732105321483,3.23961,3086.8,3086.3,1.29604]
[1732105321682,3.23961,3086.8,3086.3,2.59208]
[1732105321886,3.23943,3087.0,3086.3,1.29602]
[1732105321887,3.23955,3086.9,3086.3,1.29602]
[1732105322425,3.23955,3086.9,3086.3,2.59204]
[1732105322635,3.49289954,3086.8,3085.7,0.7824]
[1732105322830,3.24023,3086.2,3085.7,0.7824]
[1732105322995,3.24023,3086.2,3085.4,0.7824]
[1732105322996,3.24039,3086.1,3085.4,0.7824]
[1732105323326,0.55,3086.0,3085.5,1.29636]
[1732105323532,3.24056,3085.9,3085.4,2.07882]
[1732105323737,0.55,3086.0,3085.5,1.29637]
[1732105323883,8.86,3086.5,3085.9,1.2962]
[1732105324087,8.86,3086.5,3086.2,1.29609]
[1732105324341,0.55,3086.8,3086.2,0.207849]
[1732105324621,0.766,3087.2,3086.4,1.29598]
[1732105324849,3.2394,3087.0,3086.1,0.7824]
[1732105324986,3.2396,3086.8,3086.2,1.29606]
[1732105325331,3.23962,3086.8,3086.2,1.29606]
[1732105325478,3.23939,3087.0,3086.5,1.29596]
[1732105325997,3.23939,3087.0,3086.3,1.29604]
[1732105325998,0.8272,3087.9,3087.2,1.29563]
[1732105326182,3.23842,3088.0,3087.4,1.29556]
[1732105326538,3.23892,3087.5,3086.9,2.12059]
[1732105326840,3.23914,3087.3,3086.9,0.8248]
[1732105327036,3.23924,3087.2,3086.7,1.29585]
[1732105327186,3.23891,3087.5,3086.8,1.29581]
[1732105327586,3.78913,3087.3,3086.7,0.8216]
[1732105327830,3.23892,3087.5,3086.9,1.29576]
[1732105328030,3.23877,3087.6,3087.1,1.29571]
[1732105328385,6.47806,3087.4,3086.7,2.11746]
[1732105328684,3.23929,3087.1,3086.7,0.8216]
[1732105328886,3.23923,3087.2,3086.6,1.29589]
[1732105329114,0.55,3087.4,3086.5,0.8285]
[1732105329320,3.23959,3086.9,3086.5,0.8285]
[1732105329621,0.55,3086.9,3086.5,0.8285]
[1732105330208,3.78959,3086.9,3086.5,0.8285]
[1732105330405,3.55,3086.9,3085.4,2.94043273]
[1732105330612,3.78972,3086.7,3086.2,1.29608]
[1732105330809,3.23981,3086.6,3086.1,2.06072]
[1732105331308,0.4514906,3086.7,3086.2,2.59214]
[1732105331509,6.23964,3086.8,3086.2,1.29606]
[1732105331810,0.55,3086.8,3086.4,1.29598]
[1732105332011,3.23939,3087.0,3086.4,2.59195]
[1732105332222,3.0,3087.0,3086.5,1.29593]
[1732105332427,5.465056,3087.0,3086.5,1.29593]
[1732105332640,8.86,3087.2,3086.2,0.03239295]
[1732105332796,6.2393,3087.1,3086.6,0.7646]
[1732105333316,6.2393,3087.1,3086.6,2.0605]
[1732105334249,3.0,3087.1,3086.6,0.7646]
[1732105334549,8.86,3087.2,3086.6,2.06052]
[1732105334748,8.86,3087.2,3086.8,2.59162]
[1732105335052,8.86,3087.2,3086.6,0.7646]
[1732105335053,8.86,3087.2,3086.6,2.06051]
[1732105335203,8.86,3087.2,3086.8,1.2958]
[1732105335400,3.23874,3087.7,3087.2,1.29567]
[1732105335603,3.2385,3087.9,3087.2,1.29563]
[1732105335899,3.2385,3087.9,3087.1,0.8275]
[1732105335900,0.41694824,3087.9,3087.5,1.29554]
[1732105336215,3.2384,3088.0,3087.3,1.29559]
[1732105336742,0.93397364,3088.2,3087.1,0.8275]
[1732105336743,3.23871,3087.7,3087.1,2.12321]
[1732105337041,3.23918,3087.2,3086.6,1.29592]
[1732105337242,3.23918,3087.2,3086.7,2.07658]
[1732105337896,7.03907,3087.7,3087.0,1.29575]
[1732105337897,6.23867,3087.7,3087.0,1.29575]
[1732105338102,0.55,3087.7,3087.3,0.8061]
[1732105338710,3.78872,3087.7,3087.3,0.8061]
[1732105338910,3.78872,3087.7,3087.0,2.09882]
[1732105339110,4.167592,3087.7,3087.1,1.29569]
[1732105339347,0.928872,3087.7,3087.3,1.29562]
[1732105339516,3.78866,3087.7,3087.1,2.59137]
[1732105339713,3.0,3087.8,3087.3,1.2956]
[1732105339960,3.23855,3087.8,3087.3,1.2956]
[1732105340107,3.23845,3087.9,3087.4,1.29558]
[1732105340312,5.56882047,3088.3,3087.5,1.29554]
[1732105340313,9.59171047,3088.3,3087.5,1.29554]
[1732105340653,9.59171047,3088.3,3087.6,2.0986]